[Event "32nd NATO Chess Championship"]
[Site "Tartu, Estonia"]
[Date "2022.06.29"]
[Round "4.2"]
[White "Pavlidis, Anastasios"]
[Black "Cichy, Kamil"]
[Result "1-0"]
[TimeControl "90 min + 30 sec increment from move one"]
[WhiteTitle "IM"]
[WhiteFideId "4208404"]
[BlackFideId "1177257"]
[WhiteElo "2296"]
[BlackElo "2179"]

1. e4 {[%clk 01:29:58]} {[%emt 00:01:02]} d5 {[%clk 01:29:29]} {[%emt
00:01:32]} 2. exd5 {[%clk 01:30:15]} {[%emt 00:00:12]} Qxd5 {[%clk 01:29:54]}
{[%emt 00:00:05]} 3. Nc3 {[%clk 01:30:35]} {[%emt 00:00:08]} Qd8 {[%clk
01:30:20]} {[%emt 00:00:06]} 4. d4 {[%clk 01:29:48]} {[%emt 00:01:16]} g6
{[%clk 01:29:57]} {[%emt 00:00:54]} 5. Nf3 {[%clk 01:26:58]} {[%emt 00:03:19]}
Bg7 {[%clk 01:28:55]} {[%emt 00:01:33]} 6. Bc4 {[%clk 01:26:34]} {[%emt
00:00:53]} Nf6 {[%clk 01:25:46]} {[%emt 00:03:39]} 7. O-O {[%clk 01:20:42]}
{[%emt 00:06:20]} O-O {[%clk 01:22:48]} {[%emt 00:03:31]} 8. h3 {[%clk
01:20:06]} {[%emt 00:01:04]} a6 {[%clk 01:22:35]} {[%emt 00:00:45]} 9. a4
{[%clk 01:19:06]} {[%emt 00:01:29]} b6 {[%clk 01:12:30]} {[%emt 00:10:35]} 10.
Qe2 {[%clk 01:15:09]} {[%emt 00:04:26]} Bb7 {[%clk 01:02:45]} {[%emt 00:10:16]}
11. Re1 {[%clk 01:13:48]} {[%emt 00:01:50]} e6 {[%clk 01:00:39]} {[%emt
00:02:37]} 12. Bg5 {[%clk 01:11:18]} {[%emt 00:02:59]} h6 {[%clk 00:54:18]}
{[%emt 00:06:53]} 13. Bh4 {[%clk 00:58:37]} {[%emt 00:13:09]} g5 {[%clk
00:42:40]} {[%emt 00:12:08]} 14. Bg3 {[%clk 00:56:25]} {[%emt 00:02:40]} Nc6
{[%clk 00:41:37]} {[%emt 00:01:36]} 15. Rad1 {[%clk 00:54:08]} {[%emt
00:02:47]} Nb4 {[%clk 00:39:24]} {[%emt 00:02:43]} 16. Ne5 {[%clk 00:48:09]}
{[%emt 00:06:26]} Nbd5 {[%clk 00:27:45]} {[%emt 00:12:11]} 17. Nxd5 {[%clk
00:34:42]} {[%emt 00:13:57]} exd5 {[%clk 00:21:24]} {[%emt 00:06:52]} 18. Bd3
{[%clk 00:34:28]} {[%emt 00:00:42]} Ne4 {[%clk 00:20:58]} {[%emt 00:00:57]} 19.
Bh2 {[%clk 00:31:46]} {[%emt 00:03:10]} f5 {[%clk 00:15:33]} {[%emt 00:05:57]}
20. f3 {[%clk 00:24:52]} {[%emt 00:07:24]} Nd6 {[%clk 00:14:38]} {[%emt
00:01:26]} 21. c3 {[%clk 00:24:12]} {[%emt 00:01:09]} Qe8 {[%clk 00:06:47]}
{[%emt 00:08:21]} 22. Qc2 {[%clk 00:23:46]} {[%emt 00:00:56]} Rd8 {[%clk
00:03:37]} {[%emt 00:03:41]} 23. Nc4 {[%clk 00:07:48]} {[%emt 00:16:27]} dxc4
{[%clk 00:03:29]} {[%emt 00:00:39]} 24. Rxe8 {[%clk 00:07:54]} {[%emt
00:00:22]} Rdxe8 {[%clk 00:03:06]} {[%emt 00:00:55]} 25. Bxd6 {[%clk 00:07:06]}
{[%emt 00:01:18]} cxd3 {[%clk 00:03:29]} {[%emt 00:00:07]} 26. Qb3+ {[%clk
00:07:22]} {[%emt 00:00:13]} Rf7 {[%clk 00:03:56]} {[%emt 00:00:03]} 27. Bxc7
{[%clk 00:06:54]} {[%emt 00:00:58]} g4 {[%clk 00:03:41]} {[%emt 00:00:46]} 28.
Rxd3 {[%clk 00:06:15]} {[%emt 00:01:08]} gxf3 {[%clk 00:03:39]} {[%emt
00:00:33]} 29. gxf3 {[%clk 00:06:13]} {[%emt 00:00:31]} Bf6 {[%clk 00:03:14]}
{[%emt 00:00:56]} 30. Be5 {[%clk 00:06:12]} {[%emt 00:00:30]} Kf8 {[%clk
00:02:03]} {[%emt 00:01:41]} 31. Qb4+ {[%clk 00:05:32]} {[%emt 00:01:10]} Kg8
{[%clk 00:01:50]} {[%emt 00:00:44]} 32. Qxb6 {[%clk 00:05:12]} {[%emt
00:00:49]} Rg7+ {[%clk 00:01:16]} {[%emt 00:01:04]} 33. Kf1 {[%clk 00:05:26]}
{[%emt 00:00:15]} Bxe5 {[%clk 00:01:18]} {[%emt 00:00:29]} 34. dxe5 {[%clk
00:05:50]} {[%emt 00:00:06]} Rxe5 {[%clk 00:01:37]} {[%emt 00:00:12]} 35. Qxh6
{[%clk 00:05:29]} {[%emt 00:00:50]} Re8 {[%clk 00:01:32]} {[%emt 00:00:35]} 36.
Kf2 {[%clk 00:03:45]} {[%emt 00:02:13]} Rge7 {[%clk 00:00:34]} {[%emt
00:01:29]} 37. Rd6 {[%clk 00:03:25]} {[%emt 00:00:50]} Re2+ {[%clk 00:00:36]}
{[%emt 00:00:28]} 38. Kg3 {[%clk 00:03:44]} {[%emt 00:00:09]} f4+ {[%clk
00:00:41]} {[%emt 00:00:27]} 39. Qxf4 {[%clk 00:03:35]} {[%emt 00:00:38]} 1-0

[Event "32nd NATO Chess Championship"]
[Site "Tartu, Estonia"]
[Date "2022.06.29"]
[Round "4.3"]
[White "Papasimakopoulos, Alexandros"]
[Black "Pedersen, Finn"]
[Result "1-0"]
[TimeControl "90 min + 30 sec increment from move one"]
[WhiteTitle "CM"]
[BlackTitle "FM"]
[WhiteFideId "4244125"]
[BlackFideId "1400762"]
[WhiteElo "2259"]
[BlackElo "2300"]

1. c4 {[%clk 01:30:51]} {[%emt 00:00:08]} c6 {[%clk 01:30:55]} {[%emt
00:00:06]} 2. Qa4 {[%clk 01:31:15]} {[%emt 00:00:06]} Nf6 {[%clk 01:29:32]}
{[%emt 00:01:52]} 3. Nf3 {[%clk 01:31:25]} {[%emt 00:00:19]} e6 {[%clk
01:26:42]} {[%emt 00:03:21]} 4. d4 {[%clk 01:31:01]} {[%emt 00:00:55]} d5
{[%clk 01:26:58]} {[%emt 00:00:14]} 5. Bg5 {[%clk 01:29:59]} {[%emt 00:01:31]}
Nbd7 {[%clk 01:26:15]} {[%emt 00:01:14]} 6. Nbd2 {[%clk 01:28:22]} {[%emt
00:02:06]} h6 {[%clk 01:21:43]} {[%emt 00:05:03]} 7. Bh4 {[%clk 01:27:52]}
{[%emt 00:01:00]} Nb6 {[%clk 01:19:22]} {[%emt 00:02:51]} 8. Qc2 {[%clk
01:27:55]} {[%emt 00:00:27]} Nxc4 {[%clk 01:19:09]} {[%emt 00:00:42]} 9. Nxc4
{[%clk 01:25:30]} {[%emt 00:02:55]} dxc4 {[%clk 01:19:32]} {[%emt 00:00:07]} 10.
Bxf6 {[%clk 01:25:55]} {[%emt 00:00:05]} Bb4+ {[%clk 01:18:43]} {[%emt
00:01:19]} 11. Kd1 {[%clk 01:26:12]} {[%emt 00:00:14]} Qxf6 {[%clk 01:17:53]}
{[%emt 00:01:18]} 12. Qxc4 {[%clk 01:26:37]} {[%emt 00:00:06]} a5 {[%clk
01:16:44]} {[%emt 00:01:38]} 13. e3 {[%clk 01:25:31]} {[%emt 00:01:37]} O-O
{[%clk 01:16:24]} {[%emt 00:00:51]} 14. Bd3 {[%clk 01:25:24]} {[%emt 00:00:37]}
Bd6 {[%clk 01:13:46]} {[%emt 00:03:06]} 15. Ke2 {[%clk 01:24:52]} {[%emt
00:01:04]} e5 {[%clk 01:12:14]} {[%emt 00:02:01]} 16. dxe5 {[%clk 01:19:53]}
{[%emt 00:05:30]} Bxe5 {[%clk 01:12:27]} {[%emt 00:00:16]} 17. Nxe5 {[%clk
01:19:42]} {[%emt 00:00:42]} Qxe5 {[%clk 01:12:43]} {[%emt 00:00:14]} 18. Qc3
{[%clk 01:19:57]} {[%emt 00:00:15]} Qh5+ {[%clk 01:10:36]} {[%emt 00:02:34]} 19.
f3 {[%clk 01:20:13]} {[%emt 00:00:17]} Re8 {[%clk 01:10:10]} {[%emt 00:00:54]}
20. Kf2 {[%clk 01:18:49]} {[%emt 00:01:55]} Be6 {[%clk 01:05:19]} {[%emt
00:05:21]} 21. a3 {[%clk 01:17:35]} {[%emt 00:01:45]} a4 {[%clk 00:58:42]}
{[%emt 00:07:06]} 22. Bc2 {[%clk 01:16:30]} {[%emt 00:01:34]} Rad8 {[%clk
00:56:16]} {[%emt 00:02:57]} 23. h4 {[%clk 01:16:37]} {[%emt 00:00:23]} Bb3
{[%clk 00:55:39]} {[%emt 00:01:07]} 24. g4 {[%clk 01:07:28]} {[%emt 00:09:39]}
Qb5 {[%clk 00:53:44]} {[%emt 00:02:24]} 25. Bxb3 {[%clk 01:07:37]} {[%emt
00:00:23]} axb3 {[%clk 00:53:26]} {[%emt 00:00:47]} 26. Rad1 {[%clk 01:07:07]}
{[%emt 00:01:00]} Rd5 {[%clk 00:52:47]} {[%emt 00:01:09]} 27. Rxd5 {[%clk
01:06:09]} {[%emt 00:01:28]} Qxd5 {[%clk 00:52:49]} {[%emt 00:00:28]} 28. e4
{[%clk 01:06:29]} {[%emt 00:00:10]} Qe6 {[%clk 00:49:49]} {[%emt 00:03:30]} 29.
Rd1 {[%clk 01:06:05]} {[%emt 00:00:53]} h5 {[%clk 00:50:03]} {[%emt 00:00:17]}
30. gxh5 {[%clk 01:06:07]} {[%emt 00:00:28]} Qh3 {[%clk 00:50:20]} {[%emt
00:00:13]} 31. Rg1 {[%clk 01:04:25]} {[%emt 00:02:12]} Qh2+ {[%clk 00:47:08]}
{[%emt 00:03:43]} 32. Rg2 {[%clk 01:03:35]} {[%emt 00:01:20]} Qxh4+ {[%clk
00:46:37]} {[%emt 00:01:00]} 33. Ke2 {[%clk 00:57:50]} {[%emt 00:06:14]} f6
{[%clk 00:46:44]} {[%emt 00:00:23]} 34. Qxb3+ {[%clk 00:58:13]} {[%emt
00:00:08]} Kh8 {[%clk 00:46:50]} {[%emt 00:00:24]} 35. Qxb7 {[%clk 00:57:54]}
{[%emt 00:00:49]} Rxe4+ {[%clk 00:46:17]} {[%emt 00:01:02]} 36. Kd3 {[%clk
00:57:26]} {[%emt 00:00:58]} Rd4+ {[%clk 00:37:27]} {[%emt 00:09:21]} 37. Kc2
{[%clk 00:56:23]} {[%emt 00:01:33]} Rd7 {[%clk 00:29:34]} {[%emt 00:08:23]} 38.
Qc8+ {[%clk 00:56:05]} {[%emt 00:00:48]} Kh7 {[%clk 00:29:41]} {[%emt
00:00:23]} 39. Qxd7 {[%clk 00:56:30]} {[%emt 00:00:05]} Qc4+ {[%clk 00:30:01]}
{[%emt 00:00:09]} 40. Kd2 {[%clk 00:56:47]} {[%emt 00:00:14]} Qf4+ {[%clk
00:29:49]} {[%emt 00:00:41]} 41. Ke2 {[%clk 00:57:12]} {[%emt 00:00:06]} Qe5+
{[%clk 00:29:46]} {[%emt 00:00:33]} 42. Kf1 {[%clk 00:57:36]} {[%emt 00:00:05]}
Qb5+ {[%clk 00:29:01]} {[%emt 00:01:16]} 43. Kg1 {[%clk 00:57:45]} {[%emt
00:00:20]} Qc5+ {[%clk 00:29:14]} {[%emt 00:00:18]} 44. Kh1 {[%clk 00:58:08]}
{[%emt 00:00:07]} 1-0

[Event "32nd NATO Chess Championship"]
[Site "Tartu, Estonia"]
[Date "2022.06.29"]
[Round "4.4"]
[White "Pietruszewski, Marcin"]
[Black "Schott, Guido"]
[Result "1-0"]
[TimeControl "90 min + 30 sec increment from move one"]
[WhiteFideId "1170295"]
[BlackFideId "4646746"]
[WhiteElo "2195"]
[BlackElo "2028"]

1. e4 {[%clk 01:30:56]} {[%emt 00:00:02]} c5 {[%clk 01:30:39]} {[%emt
00:00:23]} 2. Nf3 {[%clk 01:31:08]} {[%emt 00:00:17]} e6 {[%clk 01:30:59]}
{[%emt 00:00:11]} 3. d4 {[%clk 01:31:16]} {[%emt 00:00:21]} cxd4 {[%clk
01:31:22]} {[%emt 00:00:08]} 4. Nxd4 {[%clk 01:31:41]} {[%emt 00:00:06]} Nc6
{[%clk 01:31:30]} {[%emt 00:00:21]} 5. Nc3 {[%clk 01:31:07]} {[%emt 00:01:03]}
Qc7 {[%clk 01:28:04]} {[%emt 00:03:57]} 6. Be3 {[%clk 01:28:57]} {[%emt
00:02:39]} a6 {[%clk 01:28:17]} {[%emt 00:00:18]} 7. Be2 {[%clk 01:27:35]}
{[%emt 00:01:52]} Nf6 {[%clk 01:28:00]} {[%emt 00:00:47]} 8. O-O {[%clk
01:27:51]} {[%emt 00:00:12]} Bb4 {[%clk 01:26:49]} {[%emt 00:01:42]} 9. Na4
{[%clk 01:25:29]} {[%emt 00:02:51]} O-O {[%clk 01:16:50]} {[%emt 00:10:31]} 10.
c4 {[%clk 01:25:35]} {[%emt 00:00:24]} Nxe4 {[%clk 01:12:23]} {[%emt 00:04:57]}
11. Bf3 {[%clk 00:52:41]} {[%emt 00:33:23]} f5 {[%clk 00:59:46]} {[%emt
00:13:07]} 12. c5 {[%clk 00:44:48]} {[%emt 00:08:23]} Qe5 {[%clk 00:37:25]}
{[%emt 00:22:50]} 13. Nxc6 {[%clk 00:37:28]} {[%emt 00:07:50]} bxc6 {[%clk
00:35:43]} {[%emt 00:02:13]} 14. Nb6 {[%clk 00:31:34]} {[%emt 00:06:25]} Bxc5
{[%clk 00:29:49]} {[%emt 00:06:24]} 15. Nxa8 {[%clk 00:30:01]} {[%emt
00:02:03]} Bxe3 {[%clk 00:27:06]} {[%emt 00:03:13]} 16. fxe3 {[%clk 00:29:02]}
{[%emt 00:01:29]} Qb8 {[%clk 00:27:02]} {[%emt 00:00:33]} 17. Bxe4 {[%clk
00:28:24]} {[%emt 00:01:08]} fxe4 {[%clk 00:27:18]} {[%emt 00:00:14]} 18. Rxf8+
{[%clk 00:28:02]} {[%emt 00:00:52]} Kxf8 {[%clk 00:27:43]} {[%emt 00:00:05]} 19.
Qd4 {[%clk 00:24:11]} {[%emt 00:04:20]} e5 {[%clk 00:25:35]} {[%emt 00:02:38]}
20. Rf1+ {[%clk 00:24:27]} {[%emt 00:00:14]} Ke8 {[%clk 00:23:35]} {[%emt
00:02:30]} 21. Qc5 {[%clk 00:24:20]} {[%emt 00:00:37]} d6 {[%clk 00:22:48]}
{[%emt 00:01:18]} 22. Qxc6+ {[%clk 00:23:50]} {[%emt 00:01:00]} Bd7 {[%clk
00:23:11]} {[%emt 00:00:07]} 23. Nc7+ {[%clk 00:23:11]} {[%emt 00:01:09]} Ke7
{[%clk 00:23:29]} {[%emt 00:00:12]} 24. Nd5+ {[%clk 00:23:26]} {[%emt
00:00:14]} Ke6 {[%clk 00:23:02]} {[%emt 00:00:57]} 25. Qc4 {[%clk 00:22:12]}
{[%emt 00:01:45]} 1-0

[Event "32nd NATO Chess Championship"]
[Site "Tartu, Estonia"]
[Date "2022.06.29"]
[Round "4.5"]
[White "Onley, David E"]
[Black "Sycz, Dariusz"]
[Result "0-1"]
[TimeControl "90 min + 30 sec increment from move one"]
[WhiteFideId "419311"]
[BlackFideId "1138650"]
[WhiteElo "2083"]
[BlackElo "2189"]

1. e4 {[%emt 00:35:45]} d6 {[%emt 00:00:14]} 2. d4 {[%emt 00:00:11]} Nf6 {[%emt
00:00:09]} 3. Nc3 {[%emt 00:00:20]} Nbd7 {[%emt 00:00:16]} 4. Be3 {[%emt
00:01:39]} e5 {[%emt 00:00:30]} 5. f3 {[%emt 00:01:12]} Be7 {[%emt 00:02:30]} 6.
Qd2 {[%emt 00:01:01]} c6 {[%emt 00:03:04]} 7. O-O-O {[%emt 00:00:52]} a6 {[%emt
00:06:34]} 8. g4 {[%emt 00:02:38]} b5 {[%emt 00:04:47]} 9. Nce2 {[%emt
00:10:49]} Qc7 {[%emt 00:16:44]} 10. Ng3 {[%emt 00:04:18]} Nb6 {[%emt
00:01:02]} 11. g5 {[%emt 00:07:02]} Ng8 {[%emt 00:00:28]} 12. Kb1 {[%emt
00:06:43]} h6 {[%emt 00:02:29]} 13. gxh6 {[%emt 00:04:36]} Nxh6 {[%emt
00:00:22]} 14. Qf2 {[%emt 00:10:15]} c5 {[%emt 00:07:48]} 15. dxc5 {[%emt
00:03:50]} dxc5 {[%emt 00:01:32]} 16. N1e2 {[%emt 00:08:47]} b4 {[%emt
00:04:46]} 17. Nc1 {[%emt 00:01:22]} Be6 {[%emt 00:03:38]} 18. Rg1 {[%emt
00:03:29]} g6 {[%emt 00:01:44]} 19. h4 {[%emt 00:02:27]} Na4 {[%emt 00:02:45]}
20. h5 {[%emt 00:03:18]} g5 {[%emt 00:00:56]} 21. Nf5 {[%emt 00:00:53]} Nxf5
{[%emt 00:03:16]} 22. exf5 {[%emt 00:00:11]} Bxf5 {[%emt 00:00:11]} 23. Bxg5
{[%emt 00:01:38]} f6 {[%emt 00:05:10]} 24. Bh4 {[%emt 00:00:41]} c4 {[%emt
00:07:10]} 25. Rg7 {[%emt 00:01:07]} Qc6 {[%emt 00:07:04]} 26. Qe3 {[%emt
00:07:49]} Bc5 {[%emt 00:03:15]} 27. Qe2 {[%emt 00:01:42]} Bf8 {[%emt
00:01:38]} 28. Rg1 {[%emt 00:05:14]} Rc8 {[%emt 00:01:27]} 29. Ka1 {[%emt
00:02:34]} Rxh5 {[%emt 00:04:54]} 30. Bg3 {[%emt 00:00:21]} Rh6 {[%emt
00:05:25]} 31. Re1 {[%emt 00:00:31]} Bd6 {[%emt 00:01:19]} 32. f4 {[%emt
00:01:55]} e4 {[%emt 00:00:37]} 33. Bg2 {[%emt 00:00:24]} Kf7 {[%emt 00:00:38]}
34. Bxe4 {[%emt 00:00:56]} Bxe4 {[%emt 00:00:06]} 35. Qxe4 {[%emt 00:00:11]}
Qxe4 {[%emt 00:00:02]} 36. Rxe4 {[%emt 00:00:10]} a5 {[%emt 00:00:48]} 37. Ne2
{[%emt 00:01:16]} f5 {[%emt 00:00:44]} 38. Rd4 {[%emt 00:00:56]} Re8 {[%emt
00:00:58]} 39. Rxd6 {[%emt 00:01:59]} Rxd6 {[%emt 00:00:12]} 0-1

[Event "32nd NATO Chess Championship"]
[Site "Tartu, Estonia"]
[Date "2022.06.29"]
[Round "4.6"]
[White "Mouroutis, Konstantinos"]
[Black "Valeinis, Janis"]
[Result "0-1"]
[TimeControl "90 min + 30 sec increment from move one"]
[WhiteFideId "4204689"]
[BlackFideId "11601450"]
[WhiteElo "2133"]
[BlackElo "2176"]

1. d4 {[%emt 00:35:58]} d5 {[%emt 00:00:45]} 2. Bg5 {[%emt 00:01:17]} h6 {[%emt
00:02:48]} 3. Bh4 {[%emt 00:01:47]} c6 {[%emt 00:01:11]} 4. c3 {[%emt
00:01:31]} Qb6 {[%emt 00:00:45]} 5. Qb3 {[%emt 00:06:10]} Bf5 {[%emt 00:02:43]}
6. Nd2 {[%emt 00:00:24]} Nd7 {[%emt 00:11:54]} 7. f3 {[%emt 00:02:07]} e5
{[%emt 00:04:01]} 8. e4 {[%emt 00:04:43]} Be6 {[%emt 00:09:46]} 9. exd5 {[%emt
00:06:33]} Bxd5 {[%emt 00:02:27]} 10. Qxb6 {[%emt 00:14:08]} axb6 {[%emt
00:00:07]} 11. Bf2 {[%emt 00:06:02]} exd4 {[%emt 00:09:52]} 12. Bxd4 {[%emt
00:00:20]} Ngf6 {[%emt 00:00:11]} 13. Bc4 {[%emt 00:06:21]} Bxc4 {[%emt
00:02:31]} 14. Nxc4 {[%emt 00:00:03]} b5 {[%emt 00:00:05]} 15. Ne5 {[%emt
00:07:45]} Nc5 {[%emt 00:07:06]} 16. Bxc5 {[%emt 00:08:44]} Bxc5 {[%emt
00:00:21]} 17. a3 {[%emt 00:05:24]} Rd8 {[%emt 00:07:43]} 18. Rd1 {[%emt
00:02:47]} O-O {[%emt 00:00:40]} 19. Ne2 {[%emt 00:00:17]} Nd5 {[%emt
00:00:40]} 20. Nd3 {[%emt 00:04:26]} Ne3 {[%emt 00:00:44]} 21. Kd2 {[%emt
00:02:58]} Nxd1 {[%emt 00:01:54]} 22. Rxd1 {[%emt 00:00:07]} Rfe8 {[%emt
00:00:21]} 23. Ng3 {[%emt 00:01:08]} Bb6 {[%emt 00:04:28]} 24. Kc2 {[%emt
00:02:05]} Bc7 {[%emt 00:00:15]} 25. Nf1 {[%emt 00:00:37]} Re2+ {[%emt
00:00:12]} 26. Rd2 {[%emt 00:00:08]} Rxd2+ {[%emt 00:00:12]} 27. Kxd2 {[%emt
00:00:03]} f5 {[%emt 00:03:37]} 28. g3 {[%emt 00:00:49]} Kf7 {[%emt 00:00:26]}
29. Ke2 {[%emt 00:01:25]} Re8+ {[%emt 00:00:42]} 30. Kd2 {[%emt 00:00:13]} Bd6
{[%emt 00:01:53]} 31. Ne3 {[%emt 00:00:44]} Kf6 {[%emt 00:00:50]} 32. c4 {[%emt
00:00:52]} bxc4 {[%emt 00:00:57]} 33. Nxc4 {[%emt 00:00:02]} Bc7 {[%emt
00:01:08]} 34. Nc5 {[%emt 00:00:42]} Rd8+ {[%emt 00:00:18]} 35. Ke2 {[%emt
00:00:12]} b5 {[%emt 00:00:18]} 36. Nd2 {[%emt 00:00:41]} Be5 {[%emt 00:00:28]}
37. b3 {[%emt 00:02:16]} Ra8 {[%emt 00:02:32]} 38. a4 {[%emt 00:02:15]} Bd6
{[%emt 00:00:09]} 39. Nd3 {[%emt 00:04:38]} bxa4 {[%emt 00:00:09]} 40. bxa4
{[%emt 00:00:02]} Rxa4 {[%emt 00:00:12]} 41. f4 {[%emt 00:01:14]} g5 {[%emt
00:00:47]} 42. fxg5+ {[%emt 00:00:20]} hxg5 {[%emt 00:00:05]} 43. Ke3 {[%emt
00:00:54]} Bc7 {[%emt 00:01:09]} 44. Kf3 {[%emt 00:01:43]} Ra3 {[%emt
00:00:13]} 45. Ke2 {[%emt 00:00:10]} Ra2 {[%emt 00:00:17]} 46. Nb4 {[%emt
00:00:22]} Rxd2+ {[%emt 00:00:25]} 47. Kxd2 {[%emt 00:00:09]} Ba5 {[%emt
00:00:03]} 0-1

[Event "32nd NATO Chess Championship"]
[Site "Tartu, Estonia"]
[Date "2022.06.29"]
[Round "4.7"]
[White "Bohn, Ulrich"]
[Black "Kedzierski, Slawomir"]
[Result "0-1"]
[TimeControl "90 min + 30 sec increment from move one"]
[WhiteFideId "4656105"]
[BlackFideId "1134949"]
[WhiteElo "2168"]
[BlackElo "2133"]

1. d4 {[%clk 01:30:43]} {[%emt 00:00:18]} Nf6 {[%clk 01:30:15]} {[%emt
00:00:44]} 2. Bf4 {[%clk 01:31:02]} {[%emt 00:00:12]} d5 {[%clk 01:29:53]}
{[%emt 00:00:50]} 3. e3 {[%clk 01:31:27]} {[%emt 00:00:06]} c5 {[%clk
01:27:33]} {[%emt 00:02:50]} 4. c3 {[%clk 01:29:57]} {[%emt 00:02:00]} Qb6
{[%clk 01:26:28]} {[%emt 00:01:35]} 5. Qb3 {[%clk 01:30:03]} {[%emt 00:00:23]}
c4 {[%clk 01:26:46]} {[%emt 00:00:13]} 6. Qc2 {[%clk 01:30:27]} {[%emt
00:00:05]} Nc6 {[%clk 01:25:14]} {[%emt 00:02:02]} 7. Nd2 {[%clk 01:30:01]}
{[%emt 00:00:56]} g6 {[%clk 01:24:24]} {[%emt 00:01:20]} 8. e4 {[%clk
01:30:17]} {[%emt 00:00:15]} e6 {[%clk 01:12:29]} {[%emt 00:12:25]} 9. Ngf3
{[%clk 01:25:32]} {[%emt 00:05:14]} Bg7 {[%clk 01:11:49]} {[%emt 00:01:10]} 10.
Be2 {[%clk 01:22:53]} {[%emt 00:03:10]} O-O {[%clk 01:04:36]} {[%emt 00:07:42]}
11. e5 {[%clk 01:14:04]} {[%emt 00:09:19]} Nd7 {[%clk 01:02:30]} {[%emt
00:02:36]} 12. h4 {[%clk 01:13:21]} {[%emt 00:01:14]} f6 {[%clk 01:00:39]}
{[%emt 00:02:20]} 13. exf6 {[%clk 01:08:06]} {[%emt 00:05:46]} Nxf6 {[%clk
01:00:11]} {[%emt 00:00:57]} 14. Ne5 {[%clk 00:37:46]} {[%emt 00:30:51]} Nxe5
{[%clk 00:47:57]} {[%emt 00:12:43]} 15. dxe5 {[%clk 00:34:36]} {[%emt
00:03:41]} Ng4 {[%clk 00:44:16]} {[%emt 00:04:09]} 16. Bg3 {[%clk 00:23:58]}
{[%emt 00:11:10]} Rxf2 {[%clk 00:31:39]} {[%emt 00:13:06]} 17. Qa4 {[%clk
00:14:51]} {[%emt 00:09:36]} Rxe2+ {[%clk 00:24:35]} {[%emt 00:07:35]} 18. Kxe2
{[%clk 00:15:15]} {[%emt 00:00:06]} Qe3+ {[%clk 00:23:27]} {[%emt 00:01:37]} 19.
Kd1 {[%clk 00:15:33]} {[%emt 00:00:13]} Bd7 {[%clk 00:21:57]} {[%emt 00:02:00]}
20. Qxd7 {[%clk 00:15:32]} {[%emt 00:00:31]} Qxg3 {[%clk 00:22:13]} {[%emt
00:00:15]} 21. Qxe6+ {[%clk 00:15:08]} {[%emt 00:00:54]} Kh8 {[%clk 00:22:07]}
{[%emt 00:00:34]} 22. Kc1 {[%clk 00:07:58]} {[%emt 00:07:41]} Qxg2 {[%clk
00:19:32]} {[%emt 00:03:05]} 23. Rd1 {[%clk 00:08:23]} {[%emt 00:00:05]} Qe2
{[%clk 00:10:15]} {[%emt 00:09:45]} 24. Qxd5 {[%clk 00:05:40]} {[%emt
00:03:15]} Qxd1+ {[%clk 00:10:13]} {[%emt 00:00:31]} 25. Kxd1 {[%clk 00:06:07]}
{[%emt 00:00:04]} Ne3+ {[%clk 00:10:39]} {[%emt 00:00:04]} 26. Ke2 {[%clk
00:06:31]} {[%emt 00:00:07]} Nxd5 {[%clk 00:11:02]} {[%emt 00:00:07]} 27. Nxc4
{[%clk 00:06:34]} {[%emt 00:00:26]} b5 {[%clk 00:11:01]} {[%emt 00:00:31]} 28.
Nd6 {[%clk 00:06:19]} {[%emt 00:00:45]} Bxe5 {[%clk 00:09:41]} {[%emt
00:01:50]} 29. Nxb5 {[%clk 00:04:18]} {[%emt 00:02:32]} Rb8 {[%clk 00:07:44]}
{[%emt 00:02:26]} 30. Nxa7 {[%clk 00:03:54]} {[%emt 00:00:55]} Rxb2+ {[%clk
00:08:01]} {[%emt 00:00:12]} 31. Kd3 {[%clk 00:04:15]} {[%emt 00:00:09]} Bxc3
{[%clk 00:06:23]} {[%emt 00:02:08]} 32. Rc1 {[%clk 00:04:40]} {[%emt 00:00:05]}
Rxa2 {[%clk 00:05:56]} {[%emt 00:00:58]} 33. Nb5 {[%clk 00:05:06]} {[%emt
00:00:03]} Bf6 {[%clk 00:05:16]} {[%emt 00:01:10]} 34. Ke4 {[%clk 00:05:09]}
{[%emt 00:00:26]} Ne7 {[%clk 00:04:50]} {[%emt 00:00:56]} 35. Nd6 {[%clk
00:03:56]} {[%emt 00:01:44]} Ra4+ {[%clk 00:04:16]} {[%emt 00:01:04]} 36. Kf3
{[%clk 00:04:01]} {[%emt 00:00:25]} Bxh4 {[%clk 00:04:03]} {[%emt 00:00:43]} 37.
Rc7 {[%clk 00:04:13]} {[%emt 00:00:17]} Ra6 {[%clk 00:03:03]} {[%emt 00:01:30]}
38. Rd7 {[%clk 00:04:12]} {[%emt 00:00:32]} h5 {[%clk 00:02:52]} {[%emt
00:00:40]} 39. Ke4 {[%clk 00:02:55]} {[%emt 00:01:47]} Kg8 {[%clk 00:02:40]}
{[%emt 00:00:38]} 40. Nc4 {[%clk 00:02:49]} {[%emt 00:00:41]} Ra4 {[%clk
00:02:31]} {[%emt 00:00:39]} 41. Kd3 {[%clk 00:03:17]} {[%emt 00:00:02]} Bf6
{[%clk 00:02:39]} {[%emt 00:00:22]} 42. Nd2 {[%clk 00:02:26]} {[%emt 00:01:22]}
Ra3+ {[%clk 00:01:42]} {[%emt 00:01:27]} 43. Ke2 {[%clk 00:02:26]} {[%emt
00:00:29]} Ra2 {[%clk 00:01:41]} {[%emt 00:00:31]} 44. Kd3 {[%clk 00:02:48]}
{[%emt 00:00:07]} Kf7 {[%clk 00:01:28]} {[%emt 00:00:43]} 45. Ne4 {[%clk
00:03:13]} {[%emt 00:00:06]} Ra3+ {[%clk 00:01:45]} {[%emt 00:00:13]} 46. Ke2
{[%clk 00:03:37]} {[%emt 00:00:05]} Bh4 {[%clk 00:01:52]} {[%emt 00:00:24]} 47.
Rb7 {[%clk 00:02:39]} {[%emt 00:01:28]} Ke6 {[%clk 00:01:52]} {[%emt 00:00:29]}
48. Nd2 {[%clk 00:02:31]} {[%emt 00:00:39]} Ra2 {[%clk 00:01:45]} {[%emt
00:00:37]} 49. Kd3 {[%clk 00:02:54]} {[%emt 00:00:08]} Ra6 {[%clk 00:01:22]}
{[%emt 00:00:51]} 50. Ke4 {[%clk 00:03:09]} {[%emt 00:00:15]} Bf6 {[%clk
00:01:38]} {[%emt 00:00:15]} 51. Nb3 {[%clk 00:03:27]} {[%emt 00:00:13]} Ra4+
{[%clk 00:01:51]} {[%emt 00:00:15]} 52. Kf3 {[%clk 00:03:48]} {[%emt 00:00:10]}
Kf5 {[%clk 00:01:26]} {[%emt 00:00:54]} 53. Nc5 {[%clk 00:03:32]} {[%emt
00:00:46]} Ra3+ {[%clk 00:01:46]} {[%emt 00:00:11]} 54. Ke2 {[%clk 00:03:51]}
{[%emt 00:00:11]} Nd5 {[%clk 00:01:08]} {[%emt 00:01:07]} 55. Nd7 {[%clk
00:03:43]} {[%emt 00:00:39]} Re3+ {[%clk 00:01:12]} {[%emt 00:00:25]} 56. Kf2
{[%clk 00:03:56]} {[%emt 00:00:17]} Re7 {[%clk 00:01:24]} {[%emt 00:00:18]} 0-1